Cogmind - Beta 13 @@@ ROGUE MODE // 2024.06.15 @ 22:07:24 Player: MarKhan Result: Destroyed by P-60 Hacker via exploding Nuclear Reactor Performance ------------- Evolutions (3) 1500 Regions Visited (7) 1400 Robots Destroyed (94) 470 Value Destroyed (2711) 2711 Prototype IDs (32) 640 Alien Tech Used (0) 0 Bonus (375) 375 TOTAL SCORE: 7096 Bonus ------- High Alert Combat Kills 75 Aligned with FarCom 300 Cogmind --------- Core Integrity 0/700 Matter 136/300 Energy 100/100 System Corruption 25% Temperature Cool (0) Movement Core (50) Location -7/Factory Parts ------- > --- POWER (3) -------- (None) > --- PROPULSION (3) --- (None) > --- UTILITY (3) ------ Hacking Suite System Shield > --- WEAPON (4) ------- (None) > --- INVENTORY (5) ---- Large Battery (200) Improved Signal Interpreter Improved Terrain Scanner Advanced ECM Suite Peak State ------------ > --- POWER ------------ Deuterium Engine Nuclear Core Nuclear Core > --- PROPULSION ------- Light Treads Advanced Treads > --- UTILITY ---------- Cryofiber Web Large Storage Unit Improved Power Shielding > --- WEAPON ----------- Precision Beam Rifle Beamcaster Latent Energy Streamer Ion Burst Cannon > --- INVENTORY -------- Cryofiber Web Large Battery Structural Scanner Machine Analyzer Visual Processing Unit Improved Signal Interpreter Improved Terrain Scanner Improved Terrain Scan Processor Hacking Suite Long-range Tractor Beam Splice Drone Bay Improved Grenade Launcher Datajack Enhanced Flamer Katana [Rating: 49] Favorites ----------- Power Light Nuclear Core Engine Deuterium Engine Power Core Light Nuclear Core Propulsion Light Treads Treads Light Treads Wheel Compact Wheel Flight Unit Xenon Bombardment Thruster Utility Large Storage Unit Device Structural Scanner Storage Large Storage Unit Hackware System Shield Protection Improved Power Shielding Weapon Light Cannon Energy Gun Precision Beam Rifle Energy Cannon Latent Energy Streamer Ballistic Gun Light Assault Rifle Ballistic Cannon Light Cannon Launcher Improved Grenade Launcher Special Weapon Enhanced Flamer Slashing Weapon Katana Build | -11 -10 -10 -10 -9 -8 -8 -7 ------- Run | Yrd Mat Min Exi Min Mat Sto Fac Slots Evolved 6 | . . . . . 4 . 2 Power 2 | . . . . . 2 . . Propulsion 1 | . . . . . . . 1 Utility 1 | . . . . . 1 . . Weapon 2 | . . . . . 1 . 1 Parts Attached 94 | 6 15 4 . 2 15 18 34 Power 15 | 1 3 . . . 3 5 3 Engine 7 | 1 1 . . . 1 2 2 Core 8 | . 2 . . . 2 3 1 Reactor . | . . . . . . . . Propulsion 11 | 1 2 . . . 2 3 3 Treads 8 | 1 2 . . . 2 3 . Leg . | . . . . . . . . Wheel 2 | . . . . . . . 2 Hover . | . . . . . . . . Flight 1 | . . . . . . . 1 Utility 27 | 2 5 . . . 6 5 9 Device 17 | 1 4 . . . 2 4 6 Storage 5 | 1 1 . . . 3 . . Processor . | . . . . . . . . Hackware 3 | . . . . . . . 3 Protection 2 | . . . . . 1 1 . Artifact . | . . . . . . . . Weapon 41 | 2 5 4 . 2 4 5 19 Energy Gun 13 | 1 . . . . 2 1 9 Energy Cannon 8 | . 1 2 . . 1 2 2 Ballistic Gun 2 | 1 . . . . 1 . . Ballistic Cannon 5 | . 3 2 . . . . . Launcher 6 | . . . . 2 . 1 3 Special Weapon 5 | . 1 . . . . . 4 Impact Weapon . | . . . . . . . . Slashing Weapon 2 | . . . . . . 1 1 Piercing Weapon . | . . . . . . . . Special Melee Weapon . | . . . . . . . . Unidentified Prototypes 6 | . . . . . 2 1 3 Corrupted Parts 4 | . . . . . . 3 1 System Corruption 9 | . . . . . . 7 2 Parts Lost 18 | . . . . . 2 1 15 Power 4 | . . . . . 1 . 3 Propulsion 5 | . . . . . 1 . 4 Utility 3 | . . . . . . 1 2 Weapon 6 | . . . . . . . 6 Highest Loss Streak 12 | . . . . . 1 1 12 To Critical Strikes . | . . . . . . . . Average Slot Usage (%) 96 | . 100 100 100 100 95 98 84 Engine 4 | . 1 . . . 5 8 6 Core 14 | . 12 14 14 14 17 17 13 Treads 21 | . 28 28 28 28 17 17 11 Device 13 | . 14 14 14 14 12 16 10 Storage 10 | . 14 14 14 14 9 9 6 Protection 1 | . . . . . 5 . 3 Energy Gun 5 | . . . . . 13 5 13 Energy Cannon 8 | . 13 8 . . 7 12 7 Ballistic Cannon 7 | . 13 19 28 11 . . . Launcher 4 | . . . . 16 5 8 . Naked Turns . | . . . . . . . . Heaviest Build 71 | 12 32 32 32 33 61 70 71 Greatest Support 42 | 20 40 40 40 40 42 42 42 Greatest Overweight (x) 3 | . . . . . 1 3 3 Average Overweight (x) . | . . . . . 1 1 . Largest Inventory Capacity 25 | 8 15 15 15 15 25 15 15 Average Capacity 14 | 7 13 15 15 15 15 15 14 Most Carried 15 | 7 15 15 15 15 15 15 15 Average Carried 14 | 4 12 14 14 14 14 14 13 Final Capacity 15 | 8 15 15 15 15 15 15 5 Final Carried 15 | 7 15 15 15 15 15 15 4 Class Distribution -------------------- 52% | Mutant 36% | Skirmisher 10% | Scavenger-Skirmisher Dominant Class ---------------- Mutant | -10/Materials Mutant | -10/Mines Mutant | -10/Exiles Mutant | -9/Mines Scavenger-Skirmisher | -8/Materials Skirmisher | -8/Storage Skirmisher | -7/Factory Resources | -11 -10 -10 -10 -9 -8 -8 -7 ----------- Run | Yrd Mat Min Exi Min Mat Sto Fac Matter Collected 1833 | 274 284 110 . 60 218 560 327 Remotely 116 | . . . . . . 116 . Salvage Created 3219 | 96 747 84 . 63 652 1234 343 Parts 183 | 7 54 4 . 5 24 65 24 Haulers Intercepted 8 | . 2 . . . 1 5 . Recyclers Shooed . | . . . . . . . . Parts Field Recycled . | . . . . . . . . Retrieved Matter . | . . . . . . . . Parts Self-Destructed . | . . . . . . . . Prevented . | . . . . . . . . Kills | -11 -10 -10 -10 -9 -8 -8 -7 ------- Run | Yrd Mat Min Exi Min Mat Sto Fac Combat Hostiles Destroyed 56 | . 16 2 . 5 9 17 7 Guns 5 | . . . . . 3 1 1 Cannons 23 | . 16 2 . . . 1 4 AOE 27 | . . . . 5 6 14 2 Classes Destroyed 14 | 2 6 . . . 3 1 2 Worker 6 | . 1 . . . . 3 2 Builder 6 | . . . . . 4 2 . Tunneler 2 | 2 . . . . . . . Hauler 8 | . 2 . . . 1 5 . Recycler 5 | 1 . . . . . 3 1 Operator 5 | . 3 . . . 1 1 . Watcher 6 | . 2 . . . 2 1 1 Swarmer 10 | . 3 . . 3 . 4 . Grunt 34 | . 13 2 . 2 7 8 2 Duelist 1 | . . . . . 1 . . Sentry 6 | . . . . . 1 4 1 Specialist 1 | . . . . . . . 1 Hunter 1 | . . . . . . 1 . Programmer 3 | . . . . . . . 3 Best Kill Streak 8 | 2 4 2 . 3 7 8 4 Combat Bots Only 4 | . 3 2 . 3 3 4 2 Max Kills in Single Turn 3 | 1 2 1 . 3 3 3 2 Gunslinging . | . . . . . . . . Exploded 3 | . . . . 3 3 2 1 Melee . | . . . . . . . . Uniques/NPCs Destroyed . | . . . . . . . . Combat | -11 -10 -10 -10 -9 -8 -8 -7 -------- Run | Yrd Mat Min Exi Min Mat Sto Fac Hostile Shots Fired 329 | . 38 12 . 1 18 25 235 Missed 106 | . 10 4 . . 1 9 82 Damage Taken 3474 | . 314 111 . 12 418 539 2080 Core 921 | . 20 13 . . 32 121 735 Absorbed by Shields . | . . . . . . . . Redirected to Shielding 26 | . . . . . 16 . 10 Regen/Repaired (Parts) 179 | . . . . . . 179 . Core Remaining (%) 86 | 100 . . . 86 . 72 . Volleys Fired 170 | 14 48 6 . 4 19 46 33 Largest 4 | 2 2 2 . 1 3 3 4 Hottest 316 | 70 100 120 . 33 196 196 316 Shots Fired 318 | 28 95 12 . 4 42 63 74 Gun 111 | 28 . . . . 30 18 35 Cannon 160 | . 94 12 . . 7 25 22 Launcher 37 | . . . . 4 5 20 8 Special 10 | . 1 . . . . . 9 Kinetic 65 | 14 47 4 . . . . . Thermal 191 | 14 48 8 . . 30 29 62 Explosive 37 | . . . . 4 5 20 8 Electromagnetic 25 | . . . . . 7 14 4 Robot Hit Streak 11 | 4 7 5 . 4 8 10 11 Robot Miss Streak 6 | 2 4 3 . . 2 4 6 Penetration Max . | . . . . . . . . Secondary Targets . | . . . . . . . . Shots Hit Robots 174 | 14 47 6 . 3 29 42 33 Core Hits 154 | 4 26 3 . 6 27 56 32 Critical Kills . | . . . . . . . . Critical Parts Destroyed . | . . . . . . . . Critical Strikes 6 | 2 . . . . 3 1 . Burn 6 | 2 . . . . 3 1 . Melee Attacks 7 | . . . . . . 7 . Impact . | . . . . . . . . Slashing 7 | . . . . . . 7 . Piercing . | . . . . . . . . Sneak Attacks 4 | . . . . . . 4 . Combat Hostiles . | . . . . . . . . Follow-up Attacks . | . . . . . . . . Damage Inflicted 8335 | 150 905 110 . 273 2096 3379 1422 Guns 1064 | 150 . . . . 404 183 327 Cannons 1842 | . 905 110 . . 29 322 476 Explosions 5119 | . . . . 270 1660 2594 595 Melee 280 | . . . . . . 280 . Ramming 9 | . . . . 3 3 . 3 Kinetic 474 | 39 397 38 . . . . . Thermal 2329 | 111 508 72 . . 404 410 824 Explosive 2061 | . . . . 270 366 873 552 Electromagnetic 3182 | . . . . . 1323 1816 43 Impact . | . . . . . . . . Slashing 280 | . . . . . . 280 . Piercing . | . . . . . . . . Highest Corruption 54 | . . . . . 16 54 25 Average Corruption 19 | . . . . . 5 29 14 Corruption Purged . | . . . . . . . . Corruption Blocked . | . . . . . . . . Effects 154 | . . . . . 14 98 42 Message Errors 41 | . . . . . 1 31 9 Matter Fused 32 | . . . . . 3 20 9 Heat Flow Errors 18 | . . . . . 2 11 5 Energy Discharges 15 | . . . . . 6 6 3 Parts Fused 1 | . . . . . . 1 . Data Loss (minor) 15 | . . . . . 1 7 7 Data Loss (major) 8 | . . . . . . 6 2 Misfires 7 | . . . . . . 5 2 Alerts 1 | . . . . . . . 1 Misdirections 6 | . . . . . . 5 1 Weapon Failures 10 | . . . . . 1 6 3 Overload Shots . | . . . . . . . . Overflow Damage 295 | . 10 4 . . 105 155 21 Projectiles 30 | . 10 4 . . . . 16 Explosions 246 | . . . . . 105 136 5 Melee 19 | . . . . . . 19 . Knockbacks 4 | . 4 . . . . . . Impact . | . . . . . . . . Kinetic 4 | . 4 . . . . . . Secondary . | . . . . . . . . Self-Inflicted Damage 312 | . . . . . 99 77 136 Shots 9 | . . . . . 3 2 4 Rammed 5 | . . . . 1 2 . 2 Targets Rammed 5 | . . . . 1 2 . 2 Kicked . | . . . . . . . . Crushed . | . . . . . . . . Highest Temperature 620 | 100 195 312 . 4 303 332 620 Average Temperature 110 | 41 66 188 . 3 98 110 182 Received Heat Transfer 678 | . 165 63 . 6 117 99 228 Effects 10 | . . . . . 2 3 5 Shutdowns 1 | . . . . . . 1 . Energy Bleed 1 | . . . . . . . 1 Interference 5 | . . . . . 2 2 1 Matter Decay 2 | . . . . . . . 2 Short Circuit 1 | . . . . . . . 1 Siege Activations . | . . . . . . . . Robots Corrupted 2 | . . . . . . 2 . Combat Hostiles 1 | . . . . . . 1 . Parts Fried 13 | . . . . . 6 7 . Impact Corruptions . | . . . . . . . . Robots Melted . | . . . . . . . . Combat Hostiles . | . . . . . . . . Parts Melted 11 | 1 1 . . 1 5 . 3 Heat Transferred 4649 | 481 1073 148 . . 999 756 1192 Parts Sabotaged . | . . . . . . . . Parts Stolen . | . . . . . . . . Parts Stripped . | . . . . . . . . Power Chain Reactions . | . . . . . . . . Latent Energy Used 3232 | . . . . . 896 1678 658 LE Corruption 55 | . . . . . 15 30 10 Alert | -11 -10 -10 -10 -9 -8 -8 -7 ------- Run | Yrd Mat Min Exi Min Mat Sto Fac Peak Influence 991 | 15 194 89 . 85 234 991 564 Initial 450 | . 9 39 . . 26 52 450 Average 187 | 6 86 43 . 28 116 277 408 Maximum Alert Level 3 | . . . . . 1 3 2 Low Security (%) 57 | 100 100 100 . 100 69 19 . Level 1 25 | . . . . . 30 66 32 Level 2 15 | . . . . . . 10 67 Level 3 . | . . . . . . 3 . Level 4 . | . . . . . . . . Level 5 . | . . . . . . . . High Security . | . . . . . . . . Max Security . | . . . . . . . . Squads Dispatched 18 | . 6 . . . . 4 8 Investigation 6 | . 3 . . . . 2 1 Extermination 3 | . . . . . . . 3 Reinforcement 6 | . 3 . . . . 2 1 Assault . | . . . . . . . . Garrison 3 | . . . . . . . 3 Intercept . | . . . . . . . . Searches Triggered . | . . . . . . . . Construction Impeded 1 | . . . . . . 1 . Haulers Reinforced . | . . . . . . . . Active Scanning Responses . | . . . . . . . . Cargo Convoy Interrupts 1 | . . . . . . . 1 Stealth | -11 -10 -10 -10 -9 -8 -8 -7 --------- Run | Yrd Mat Min Exi Min Mat Sto Fac Distress Signals 8 | . . . . . 3 5 . Communications Jammed . | . . . . . . . . Distress Signals . | . . . . . . . . Times Spotted 97 | . 27 2 . 1 11 28 28 Peak Tracking Total 14 | . 3 2 . 2 3 4 14 Tactical Retreats 7 | . . . . . . 2 5 Traps | -11 -10 -10 -10 -9 -8 -8 -7 ------- Run | Yrd Mat Min Exi Min Mat Sto Fac Traps Triggered 7 | . 2 . . . . 4 1 Indirectly 3 | . . . . . . 3 . Trap Hack Attempts . | . . . . . . . . Triggered . | . . . . . . . . Disarmed . | . . . . . . . . Reprogrammed . | . . . . . . . . Reused . | . . . . . . . . Traps Extracted . | . . . . . . . . Installed . | . . . . . . . . Triggered . | . . . . . . . . Machines | -11 -10 -10 -10 -9 -8 -8 -7 ---------- Run | Yrd Mat Min Exi Min Mat Sto Fac Machines Disabled 25 | . 1 . . . 4 9 11 Max in Single Turn 3 | . 1 . . . 2 2 3 Garrison Access 1 | . . . . . 1 . . Machines Repaired . | . . . . . . . . Machines Dismantled . | . . . . . . . . Machines Sabotaged . | . . . . . . . . Overloaded Fab Kills . | . . . . . . . . Hacking | -11 -10 -10 -10 -9 -8 -8 -7 --------- Run | Yrd Mat Min Exi Min Mat Sto Fac Machines Accessed 22 | . 6 . 2 3 2 6 3 Terminals 12 | . 4 . . 2 1 4 1 Fabricators 1 | . . . . . . . 1 Repair Stations 2 | . . . . . . 2 . Recycling Units 2 | . 2 . . . . . . Scanalyzers . | . . . . . . . . Garrison Access 2 | . . . . . 1 . 1 Total Hacks 78 | . 17 . 24 9 7 17 4 Successful 56 | . 12 . 24 6 4 10 . Failed 22 | . 5 . . 3 3 7 4 Catastrophic 7 | . 1 . . . . 2 4 Database Lockouts . | . . . . . . . . Manual 18 | . 10 . 1 3 1 1 2 Terminals 34 | . 13 . . 8 4 8 1 Fabricators 1 | . . . . . . . 1 Repair Stations 9 | . . . . . . 9 . Recycling Units 4 | . 4 . . . . . . Scanalyzers . | . . . . . . . . Garrison Access 5 | . . . . . 3 . 2 Terminal Hacks 38 | . 6 . 24 5 2 1 . Record 23 | . . . 23 . . . . Robot Analysis 1 | . 1 . . . . . . Prototype ID Bank 2 | . 2 . . . . . . Open Door 2 | . . . . 1 . 1 . Terminal Index 1 | . . . . 1 . . . Alert Level 1 | . 1 . . . . . . Locate Traps 1 | . 1 . . . . . . Dispatch Records 1 | . . . . 1 . . . Maintenance Status 1 | . . . . . 1 . . Hauler Manifests 1 | . . . . . 1 . . Zone Layout 3 | . 1 . . 2 . . . Derelict Proto ID Bank 1 | . . . 1 . . . . Fabricator Hacks . | . . . . . . . . Repair Station Hacks 8 | . . . . . . 8 . Scan Component 4 | . . . . . . 4 . Repair 4 | . . . . . . 4 . Recycling Unit Hacks 2 | . 2 . . . . . . Report Inventory 2 | . 2 . . . . . . Scanalyzer . | . . . . . . . . Garrison Access Hacks 1 | . . . . . 1 . . Seal Access 1 | . . . . . 1 . . Unauthorized Hacks 7 | . 4 . . 1 1 1 . Terminals 5 | . 2 . . 1 1 1 . Botnet 5 | . 2 . . 1 1 1 . Fabricators . | . . . . . . . . Repair Stations . | . . . . . . . . Recycling Units 2 | . 2 . . . . . . Monitor 1 | . 1 . . . . . . Recyclers 1 | . 1 . . . . . . Scanalyzers . | . . . . . . . . Garrison Access . | . . . . . . . . Data Cores Recovered . | . . . . . . . . Used . | . . . . . . . . Hacking Detections 17 | . 5 . . 2 2 5 3 Full Trace Events 5 | . 2 . . . . 2 1 Feedback Events . | . . . . . . . . Feedback Blocked . | . . . . . . . . Robot Schematics Acquired . | . . . . . . . . Robots Built . | . . . . . . . . Authchips . | . . . . . . . . Time . | . . . . . . . . Total Robot Build Rating . | . . . . . . . . Part Schematics Acquired . | . . . . . . . . Parts Built . | . . . . . . . . Authchips . | . . . . . . . . Time . | . . . . . . . . Total Part Build Rating . | . . . . . . . . Parts Repaired 4 | . . . . . . 4 . Time 164 | . . . . . . 164 . Parts Recycled . | . . . . . . . . Recycled Matter . | . . . . . . . . Retrieved Matter . | . . . . . . . . Retrieved Components . | . . . . . . . . Parts Scanalyzed . | . . . . . . . . Part Schematics Acquired . | . . . . . . . . Parts Damaged . | . . . . . . . . Bothacking | -11 -10 -10 -10 -9 -8 -8 -7 ------------ Run | Yrd Mat Min Exi Min Mat Sto Fac Used RIF Installer . | . . . . . . . . Robots Hacked . | . . . . . . . . Non-combat . | . . . . . . . . Combat . | . . . . . . . . Robot Hacks Applied . | . . . . . . . . Relay Couplers Released . | . . . . . . . . Fabnet Peak Effective % . | . . . . . . . . Robots Rewired . | . . . . . . . . Allies Hacked . | . . . . . . . . Hacks Repelled . | . . . . . . . . Allies | -11 -10 -10 -10 -9 -8 -8 -7 -------- Run | Yrd Mat Min Exi Min Mat Sto Fac Total Allies 1 | . . . . 1 . . . Largest Group 1 | . . . . 1 . . . Highest-Rated Group 31 | . . . . 31 . . . Highest-Rated Ally 31 | . . . . 31 . . . Total Orders 2 | . . . . . . . 2 EXPLORE 1 | . . . . . . . 1 RETURN 1 | . . . . . . . 1 Ally Attacks 11 | . . . . 4 . . 7 Total Damage 84 | . . . . 62 . . 22 Kills . | . . . . . . . . Allies Corrupted . | . . . . . . . . Allies Melted . | . . . . . . . . Intel | -11 -10 -10 -10 -9 -8 -8 -7 ------- Run | Yrd Mat Min Exi Min Mat Sto Fac Robot Analysis Total 1 | . 1 . . . . . . Derelict Logs Recovered 4 | . . 2 . 2 . . . Drone Launches 10 | . . . . . . . 10 Drone Recoveries 10 | . . . . . . . 10 Exploration | -11 -10 -10 -10 -9 -8 -8 -7 ------------- Run | Yrd Mat Min Exi Min Mat Sto Fac Turns Passed 7919 | 181 1618 563 704 797 930 1681 1445 Spaces Moved 3877 | 85 880 334 439 479 351 614 695 Core 200 | 8 . . . . . . 192 Treads 3595 | 77 880 334 439 479 351 614 421 Legs . | . . . . . . . . Wheels 82 | . . . . . . . 82 Hover . | . . . . . . . . Flight . | . . . . . . . . Fastest Speed 50 | 50 160 160 160 160 232 232 50 Average Speed 181 | 149 160 160 160 160 238 234 176 Slowest Speed 400 | 160 160 160 160 160 240 400 305 Overloaded Moves . | . . . . . . . . Propulsion Burnouts . | . . . . . . . . Robots Hopped . | . . . . . . . . Cave-ins Triggered 1 | . . . . . . 1 . Exploration Rate (%) 55 | 5 78 75 90 84 27 73 15 Regions Visited 7 Branch Regions 4 Pre-discovered Areas 2 | . . 1 1 . . . . Known Exits Taken 2 | . . . . . 1 1 . Unknown Exits Taken 5 | 1 1 1 1 1 . . . Scrap Searched 2 | . . 1 . 1 . . . Spaces Dug 7 | . 1 . . . . . 6 Terrain Destroyed 537 | . 1 . . 28 96 260 152 Melee . | . . . . . . . . Projectile 2 | . 1 . . . 1 . . AOE 535 | . . . . 28 95 260 152 Terrain Rammed . | . . . . . . . . Walls Destroyed . | . . . . . . . . Machines Disabled . | . . . . . . . . Actions | -11 -10 -10 -10 -9 -8 -8 -7 --------- Run | Yrd Mat Min Exi Min Mat Sto Fac Total 4426 | 111 997 352 441 506 409 779 831 Wait 177 | . 22 2 . 15 5 80 53 Move 3869 | 84 879 333 438 478 350 612 695 Hop . | . . . . . . . . Pick Up 47 | 7 18 3 1 3 8 4 3 Fast Attach 33 | 6 2 . . . 4 6 15 Attach 10 | . 1 . . . 4 1 4 Detach 3 | . . . . . 1 1 1 Swap 51 | . 12 4 . 2 7 11 15 Drop 50 | . 15 4 1 3 9 10 8 Fire 170 | 14 48 6 . 4 19 46 33 Melee 7 | . . . . . . 7 . Ram 2 | . . . . . . . 2 Kick . | . . . . . . . . Crush 3 | . . . . 1 2 . . Escape Stasis 3 | . . . . . . 1 2 Rewire 1 | . . . 1 . . . . Trap . | . . . . . . . . Miscellaneous . | . . . . . . . . Route ------- -11/Scrapyard -10/Materials (discovered 3 exits: *Mat x2 / [*Min]) -10/Mines (discovered 3 exits: *Mat x2 / *Exi) -10/Exiles (discovered 2 exits: *Min x2) -9/Mines (discovered 2 exits: *Mat x2) -8/Materials (discovered 3 exits: *Fac x2 / *Sto) -8/Storage -7/Factory History --------- Turn | Location | Event 25 | -11/Scrapyard | Discovered new exit (range 16) 182 | -11/Scrapyard | Entered Materials 311 | -10/Materials | Build established: Mutant 786 | -10/Materials | Discovered new exit (range 15) 1419 | -10/Materials | Discovered new exit (range 3) 1770 | -10/Materials | Discovered new exit (range 12) 1800 | -10/Materials | Entered Mines 1981 | -10/Mines | Identified exit to Materials 2332 | -10/Mines | Discovered exit to Materials (range 15) 2344 | -10/Mines | Received a Rocket Launcher from a helpful Derelict 2356 | -10/Mines | Deemed a non-threat by the Exiles lab entrance 2356 | -10/Mines | Discovered new exit (range 5) 2363 | -10/Mines | Entered Exiles 2386 | -10/Exiles | Discovered new exit (range 15) 2413 | -10/Exiles | Met 8R-AWN 2440 | -10/Exiles | Met EX-HEX 2558 | -10/Exiles | Met EX-BIN 2580 | -10/Exiles | Aligned with FarCom system 2582 | -10/Exiles | Given EX-Vault access code 2622 | -10/Exiles | Opened EX-Vault 2634 | -10/Exiles | Found Latent Energy Streamer 2668 | -10/Exiles | Warned to stay clear of 0b10 Research branches 2712 | -10/Exiles | Met EX-DEC 2764 | -10/Exiles | Visited The Gauntlet 2971 | -10/Exiles | Learned location of Zion (-7) 3051 | -10/Exiles | Discovered new exit (range 12) 3067 | -10/Exiles | Left Exiles lab with Latent Energy Streamer 3067 | -10/Exiles | Entered Mines 3115 | -9/Mines | Learned location of 1 exit from Materials 3139 | -9/Mines | Found the Drone Emporium 3152 | -9/Mines | Found Prototype Device 3321 | -9/Mines | A weapon hastily lodged in a ceiling crevice suddenly fell to the ground 3399 | -9/Mines | Discovered new exit (range 10) 3424 | -9/Mines | Escorted by a lone wolf Derelict 3625 | -9/Mines | Discovered new exit (range 14) 3864 | -9/Mines | Entered Materials 3864 | -8/Materials | Evolved 4 slots: Power x2, Utility x1, Weapon x1 3865 | -8/Materials | Identified exit to Storage 3866 | -8/Materials | Identified exit to Factory 4153 | -8/Materials | Build established: Scavenger-Skirmisher 4668 | -8/Materials | System corruption reached 10% 4714 | -8/Materials | Discovered exit to Factory (range 15) 4794 | -8/Materials | Entered Storage 5016 | -8/Storage | Repaired Adv. Treads 5058 | -8/Storage | Build established: Skirmisher 5468 | -8/Storage | Repaired Deuterium Engine 5538 | -8/Storage | Repaired Beamcaster 5567 | -8/Storage | System corruption reached 30% 5578 | -8/Storage | Repaired Nuclear Core 6091 | -8/Storage | Crushed by falling debris 6418 | -8/Storage | Discovered exit to Factory (range 15) 6475 | -8/Storage | Entered Factory 6475 | -7/Factory | Evolved 2 slots: Propulsion x1, Weapon x1 7117 | -7/Factory | System corruption reached 10% 7382 | -7/Factory | Identified Splice Drone Bay 7780 | -7/Factory | Cargo convoy interrupted 7798 | -7/Factory | Released all parts (3) 7801 | -7/Factory | Core integrity fell below 50% 7833 | -7/Factory | Lost 12 parts (3p3n1u5w) 7893 | -7/Factory | Core integrity fell below 20% 7920 | -7/Factory | Destroyed by P-60 Hacker via exploding Nuclear Reactor Last Messages --------------- 07911_ Splice Drone released from Splice Drone Bay. 07911_ Penetrated by Slug. 07912_ Splice Drone released from Splice Drone Bay. 07912_ Splice Drone sneak attacks. 07912_ Splice Drone injecting X-62 Marksman... Deactivating 2 weapon systems. 07912_ Splice Drone retrieved by Splice Drone Bay. 07916_ Slammed into P-60 Hacker. 07916_ Splice Drone Bay broken. 07916_ Destabilizing: Short circuit. 07918_ System corrupted: Matter fused (-7). 07918_ P-60 Hacker resets P-60 Hacker, system corruption cleaned. 07920_ Nuclear Reactor explodes. 07920_ H-55 Commando destroyed. 07920_ G-47 Trooper destroyed. 07920_ Broken Splice Drone Bay destroyed. Map ----- +----------------------------------------------------+ | ##### !# !## #?? ???????# | | ????######### ## #"" ???????# | | ???????????## """" ## "T ??????# | | ???????????## """" ## "" "?? # | | ???????????## """" ## "" """"" # | | ???????????## """" ! ## "" """"" # | | ???????????## ## # "" # | | ???????????## ## " """ # | | ?????????#### ## ! # """"" # | | ?????????#######+###### ! """"" # | | ?????????## ###### # | | ?????????##"" ! ############+#+############+### | | ?????????##"T + Y | | ?????????##"" ########## | | ?????????##"" ######## # | | ?????????## ] ##?????# # ^ """ " "" | | ?????????##########?????### "" | | ?????????#############?###########h "" | | ???????????????????# #?# # | | ?????????????????### #?# # " | | ?????????????????#!! ### # ! | | ????????????????##! ! # |!# " ! = " | | ????????????????#/!/! ####+###/## [* | | ????????????????#""!! # h*gx! | | ????????????????#""!% # #######+####### #### | | ????????????????#""= #[@ [=## " # ###? | | ????????????????#G ! # *%## # ## ##?? | | ????????????????#"" # p x=%## "### #??? | | ????????????????#"" !## p ## "#?# #??? | | ????????????????#"" ########## ####+#### | | ????????????????# " #??????# # # | | ????????????????# "%"#?????# # # " | | ????????????????# " #?????## # # " | | ????????????????# " #??????# ########### " ! | | ????????????????###+###??????# # " ! | | ????????????????# % ######?## # # ### " ! | | ????????######### ##########""### " | | ???? + " | | ??????????####### ############### " | | ????????????????# ###+##?????????????# " " " | | ????????????????### ### ?????????????# "T" | | ??????????????????# #?# """""???????????# """ | | ?????????????????? #?# ?????????######### | | ?????????????????###??# ! ???????????????? | | ??????????????????????# !??????????????? | | ??????????????????????# !!?????????????? | | ???????????????????????###########?#?????????????? | | | | | | | +----------------------------------------------------+ Best States ------------- Heat Dissipation 48 Energy Generation 34 Energy Capacity 605 Matter Stores 300 Matter Capacity 300 Sight Range 16 Terrain Scan Density 10 ECM Strength 2 Base Temperature (-) 100 Power Shielding 66 Evasion (%) 50 Recoil Reduction 2 Offensive Hacking 10 Defensive Hacking 10 Item Schematics ----------------- None Robot Schematics ------------------ None Fabricated ------------ Nothing Alien Tech Used ----------------- None Achievements -------------- Error 47 Maybe Next Time I'll Detach My Launcher Z1$+NX3F=JRE3_ZNQR Challenges ------------ None Game ------ Seed ConcussiveVariableMegatreads Manual? 0 Play Time 01:19:11 Cumulative 38.3 hours Start 2024.06.15 @ 20:27:25 End 2024.06.15 @ 22:07:24 Sessions 1 Manual Loads 0 Difficulty Rogue Special Mode None Game No. 35 Rogue 35 Adventurer 0 Explorer 0 Win Type - Total 0 Types 0/0/0/0/0/0/0/0/0 Lore% 27 Gallery% 34 Achievement% 30 Wizard Run 0 Options --------- Layout 1 ASCII 0 Keyboard 1 Movement Arrows Keybinds 0 Fullscreen 2 Font 24/Smallcaps Map View 50x35 Zoom Use 0% Tactical HUD 1 Map Filters NONE Filters NONE Steam 1 RUN: 7aaea67b-a0f4-422d-b4b4-1d65c44c802c